bitfinex-derivatives/quotes_ETHF0:USTF0_20260113
["timestamp","ask_amount","ask_price","bid_price","bid_amount"]
[1768323740837,0.14151053,3186.0,3185.2,1.05305591]
[1768323741041,0.14151053,3186.0,3185.0,1.05305591]
[1768323741251,1.19456644,3186.0,3184.8,1.05305591]
[1768323741451,1.19456644,3186.0,3184.7,0.15707]
[1768323741754,1.05305591,3185.8,3184.7,0.15931435]
[1768323742552,1.19750344,3186.0,3184.7,1.21237026]
[1768323742752,1.19750344,3186.0,3184.9,1.05305591]
[1768323743151,0.002937,3186.0,3185.1,1.05305591]
[1768323743356,1.05599291,3186.0,3184.9,1.05305591]
[1768323745357,0.002937,3186.0,3184.9,1.05305591]
[1768323745555,0.002937,3186.0,3184.8,0.15707]
[1768323745852,0.002937,3186.0,3185.3,1.05305591]
[1768323746047,0.14151053,3186.4,3185.3,1.05305591]
[1768323746245,0.48758053,3186.8,3185.5,1.05305591]
[1768323746446,0.48758053,3186.8,3185.7,1.05305591]
[1768323746653,0.34607,3186.8,3185.9,1.05305591]
[1768323746955,0.34607,3186.8,3185.7,1.05305591]
[1768323747251,0.34916085,3186.8,3186.0,0.00471069]
[1768323752254,0.14151053,3186.3,3184.9,0.15706]
[1768323752557,1.05305591,3185.9,3184.9,0.15706]
[1768323753059,1.05305591,3186.1,3184.9,0.15706]
[1768323753357,0.14151053,3186.3,3184.9,0.15706]
[1768323754851,0.64790062,3186.8,3185.0,0.15706]
[1768323755058,1.47276977,3186.7,3185.0,0.15706]
[1768323755256,0.14176977,3186.6,3185.0,0.15706]
[1768323760560,0.34916085,3186.8,3185.3,0.15704]
[1768323760861,0.14176977,3186.7,3185.3,0.15704]
[1768323765162,0.14176977,3186.7,3184.8,0.15707]
[1768323765465,0.14176977,3186.5,3184.8,0.15707]
[1768323766557,0.14176977,3186.5,3184.9,0.15706]
[1768323766863,0.14176977,3186.5,3185.0,0.15706]
[1768323767254,0.14176977,3186.5,3185.1,0.15705]
[1768323767664,0.14176977,3186.5,3184.8,0.1415511]
[1768323767665,0.34916085,3186.8,3185.3,0.15704]
[1768323768265,0.49093062,3186.8,3185.3,0.15704]
[1768323768677,0.14176977,3186.7,3185.3,0.15704]
[1768323769765,0.14176977,3186.7,3185.4,0.15704]
[1768323769966,0.34916085,3186.8,3185.6,0.15703]
[1768323770168,0.34916085,3186.8,3185.7,0.1415511]
[1768323770573,0.34916085,3186.8,3185.7,0.15702]
[1768323770770,0.34916085,3186.8,3185.8,0.15702]
[1768323773568,0.34916085,3186.8,3185.8,1.20872852]
[1768323776075,0.34916085,3186.8,3186.0,1.05170852]
[1768323776772,1.329,3187.6,3186.6,1.05170852]
[1768323776976,2.52247829,3188.1,3186.9,1.05170852]
[1768323777273,1.47076977,3188.1,3186.4,0.15699]
[1768323777578,0.14176977,3188.1,3186.5,0.15698]
[1768323777980,0.14176977,3188.0,3186.0,0.15701]
[1768323778175,0.14176977,3187.7,3186.0,0.15701]
[1768323779581,0.14176977,3187.6,3186.0,0.15701]
[1768323781779,0.14176977,3187.6,3185.6,0.15703]
[1768323782076,0.14176977,3187.6,3185.7,0.15702]
[1768323782972,0.14176977,3187.6,3185.7,0.2985711]
[1768323783172,0.14176977,3187.6,3185.8,0.2985711]
[1768323784377,0.14176977,3187.6,3185.9,0.15701]
[1768323784579,0.14176977,3187.6,3185.9,0.2985611]
[1768323785084,0.14176977,3187.6,3186.0,0.15701]
[1768323785385,0.14254496,3188.1,3186.3,0.13196933]
[1768323785578,0.14254496,3188.1,3186.6,0.15698]
[1768323785772,0.00315569,3188.1,3186.7,0.15697]
[1768323786182,0.00315569,3188.1,3186.8,0.15697]
[1768323786376,0.00315569,3188.1,3187.0,0.13196933]
[1768323786575,0.00315569,3188.1,3187.0,0.00242251]
[1768323788584,0.14254496,3188.1,3187.0,0.00242251]
[1768323789180,0.00471069,3187.9,3187.0,0.00242251]
[1768323797491,0.14503527,3187.9,3187.0,0.00242251]
[1768323797690,0.14503527,3187.9,3186.0,0.15701]
[1768323797691,0.14032458,3187.5,3186.0,0.15701]
[1768323798703,0.14032458,3187.5,3186.0,0.16046516]
[1768323799894,0.00471069,3187.9,3186.4,0.14040906]
[1768323800591,0.00471069,3187.9,3186.5,0.15699]
[1768323803495,1.19150172,3187.6,3186.0,2.80299279]
[1768323803699,0.14032458,3187.6,3186.0,0.00345516]
[1768323804196,1.05117714,3187.0,3186.0,0.00345516]
[1768323804385,0.14032458,3187.2,3186.0,0.00345516]
[1768323806891,0.14032458,3187.1,3186.0,0.00345516]
[1768323807594,0.14032458,3187.1,3184.9,3.09700669]
[1768323807788,0.14032458,3186.9,3184.9,0.29746906]
[1768323808698,0.14032458,3186.9,3184.9,0.30019409]
[1768323810296,0.14032458,3186.9,3184.9,0.15978503]
[1768323811596,0.14032458,3186.8,3184.9,0.15978503]
[1768323811994,0.29731458,3186.4,3184.9,0.00272503]
[1768323812290,0.14032458,3186.3,3184.9,0.00272503]
[1768323815998,0.14339593,3186.0,3183.9,0.14040906]
[1768323816205,0.14339593,3185.8,3183.6,0.15713]
[1768323816503,0.14339593,3185.8,3183.6,0.28922452]
[1768323816903,0.14585871,3185.8,3183.6,0.29246438]
[1768323817097,0.14585871,3185.8,3183.8,0.13209452]
[1768323817497,4.61039593,3185.7,3183.8,0.13209452]
[1768323817697,4.61039593,3185.7,3183.6,0.00323986]
[1768323817698,0.14339593,3185.7,3183.9,0.28920452]
[1768323817905,0.14339593,3185.7,3184.0,0.13209452]
[1768323819503,0.14339593,3185.7,3184.0,0.28920452]
[1768323820605,0.14339593,3185.7,3184.2,0.13209452]
[1768323821108,0.14339593,3185.7,3184.1,0.1571]
[1768323824109,0.14339593,3185.7,3184.1,0.28919452]
[1768323824500,0.14339593,3185.7,3184.2,0.28919452]
[1768323824705,0.00246278,3185.8,3184.4,0.13209452]
[1768323824902,0.00246278,3185.8,3184.4,0.28918452]
[1768323827411,0.00246278,3185.8,3184.5,1.0523914]
[1768323828208,0.00246278,3185.8,3184.5,1.2094714]
[1768323829205,0.00246278,3185.8,3184.6,0.13209452]
[1768323829410,0.15697,3186.8,3184.0,1.0523914]
[1768323829411,0.14339593,3186.6,3185.1,1.18448592]
[1768323829613,1.46939593,3186.6,3185.1,1.18448592]
[1768323830600,1.47219259,3186.6,3185.1,1.18448592]
[1768323830806,0.00279666,3186.6,3185.2,0.28914452]
[1768323831106,0.00279666,3186.6,3185.6,0.13209452]
[1768323831408,0.00279666,3186.6,3185.7,0.13209452]
[1768323831600,0.00279666,3186.6,3185.5,0.15703]
[1768323833318,0.00279666,3186.6,3185.5,0.28912452]
[1768323836918,0.00279666,3186.6,3185.0,0.15706]
[1768323837120,0.14619259,3186.6,3185.0,0.15706]
[1768323840515,0.14619259,3186.6,3184.5,6.36]
[1768323840722,0.30038593,3186.4,3184.4,0.28918452]
[1768323841019,0.14339593,3186.3,3184.4,0.28918452]
[1768323842023,0.14339593,3186.3,3184.5,0.13209452]
[1768323843027,0.5326008,3186.2,3184.5,0.13209452]
[1768323843213,1.46839593,3186.1,3184.5,0.13209452]
[1768323843418,0.14339593,3186.0,3184.4,0.15709]
[1768323844044,0.14339593,3185.8,3184.1,0.13209452]
[1768323848741,0.14399876,3186.3,3184.4,0.14287765]
[1768323848929,0.00279666,3186.6,3185.2,0.14287765]
[1768323849539,0.00279666,3186.6,3185.4,0.29991765]
[1768323849842,0.00279666,3186.6,3185.5,0.14287765]
[1768323850036,0.00279666,3186.6,3185.7,0.14758834]
[1768323850245,1.299,3187.4,3185.7,0.14758834]
[1768323851237,1.30140078,3187.4,3185.7,0.14758834]
[1768323851441,1.44539954,3187.4,3185.7,0.14758834]
[1768323851644,0.53295244,3187.3,3185.7,0.00471069]
[1768323851939,0.14399876,3187.1,3185.7,0.00471069]
[1768323852250,0.38895368,3187.0,3185.7,0.00471069]
[1768323853737,0.53295244,3187.0,3185.7,0.00471069]
[1768323853942,0.14399876,3187.0,3185.7,0.00471069]
[1768323855640,0.14399876,3186.8,3185.7,0.00471069]
[1768323856137,1.53841619,3186.0,3184.4,0.15709]
[1768323856539,1.67821321,3186.0,3184.4,0.15709]
[1768323858448,0.13979702,3185.9,3184.4,0.15709]
[1768323862148,1.324,3185.8,3184.4,0.15709]
[1768323867158,0.13979702,3186.3,3184.6,0.13391054]
[1768323867445,0.15699,3186.4,3184.6,0.13391054]
[1768323867446,0.13979702,3186.1,3184.6,0.13391054]
[1768323867652,0.13979702,3186.1,3184.5,0.15708]
[1768323870559,0.15699,3186.4,3184.6,0.13391054]
[1768323870857,1.46379702,3186.3,3184.6,0.13391054]
[1768323871056,0.13979702,3186.2,3184.5,0.15708]
[1768323871258,0.14450771,3185.8,3184.5,0.15708]
[1768323873354,0.13979702,3186.8,3185.1,1.82937673]
[1768323873563,1.324,3186.8,3185.2,0.13391054]
[1768323873858,1.324,3186.8,3185.2,0.29096054]
[1768323874649,0.13979702,3187.2,3185.3,0.29095054]
[1768323874850,1.324,3187.1,3185.4,0.14039859]
[1768323875455,1.45712796,3187.1,3185.4,0.14039859]
[1768323876458,1.324,3187.0,3185.4,0.14039859]
[1768323877659,0.13312796,3186.9,3185.3,0.15704]
[1768323878451,0.13312796,3186.9,3185.4,0.29743859]
[1768323878652,0.13312796,3187.3,3185.5,0.15703]
[1768323878855,0.13312796,3187.3,3185.5,0.29742859]
[1768323879064,1.324,3187.2,3185.5,1.83584478]
[1768323879764,1.324,3187.2,3185.6,0.15703]
[1768323880358,1.324,3187.1,3185.6,0.15703]
[1768323880557,1.324,3187.0,3185.6,0.15703]
[1768323883153,0.13312796,3187.3,3185.6,0.15703]
[1768323883468,1.323,3187.2,3185.7,0.15702]
[1768323884152,0.13312796,3187.1,3185.7,0.15702]
[1768323884766,0.13312796,3186.9,3185.2,0.15705]
[1768323888264,0.13312796,3186.9,3185.3,0.15704]
[1768323889359,0.13312796,3186.9,3185.4,0.15704]
[1768323889562,0.29007796,3187.3,3185.5,0.29742859]
[1768323889762,1.323,3187.2,3185.5,0.29742859]
[1768323890872,1.45612796,3187.2,3185.5,0.29742859]
[1768323892267,0.13312796,3187.1,3185.5,0.29742859]
[1768323892565,0.13312796,3187.1,3185.5,0.15703]
[1768323894268,0.52248593,3187.0,3185.5,0.15703]
[1768323894465,0.13312796,3187.0,3185.5,0.15703]
[1768323897378,1.05178242,3186.9,3185.8,1.05178242]
[1768323898573,0.13312796,3187.0,3186.0,1.05178242]
[1768323898779,1.05178242,3187.3,3186.0,1.05494461]
[1768323898982,1.71168242,3187.2,3186.0,1.05494461]
[1768323899178,0.38968242,3187.1,3186.0,1.05494461]
[1768323899383,1.05178242,3187.3,3186.2,1.05178242]
[1768323899678,1.322,3187.3,3186.4,1.05178242]
[1768323900288,1.322,3187.3,3186.5,0.00471069]
[1768323900493,2.37378242,3187.3,3186.5,0.00471069]
[1768323900998,2.37478242,3187.3,3186.5,0.00471069]
[1768323901884,1.05178242,3186.9,3186.0,0.00316219]
[1768323902079,1.05178242,3186.1,3184.8,4.0710396]
[1768323902292,0.13312796,3186.6,3184.9,1.05178242]
[1768323902293,1.05178242,3186.0,3184.9,1.05178242]
[1768323902791,1.05178242,3185.8,3184.5,1.05178242]
[1768323902986,0.13312796,3185.9,3184.7,1.05178242]
[1768323903181,1.05178242,3186.2,3184.9,1.05178242]
[1768323903387,0.00471069,3185.5,3184.5,0.00285898]
[1768323904085,0.00471069,3185.5,3184.5,0.15993898]
[1768323904287,0.00471069,3185.5,3184.6,0.14039859]
[1768323905991,0.00471069,3185.5,3184.7,1.83670712]
[1768323906297,1.323,3186.1,3184.8,0.14066527]
[1768323906592,1.323,3186.1,3184.8,0.29773527]
[1768323907695,0.13312796,3186.3,3184.8,0.29773527]
[1768323907891,1.45612796,3186.3,3184.8,0.29773527]
[1768323909089,1.323,3186.3,3184.9,0.15706]
[1768323909292,0.13933058,3186.7,3185.0,0.29772527]
[1768323909595,1.323,3186.6,3185.1,0.14066527]
[1768323909795,0.13933058,3186.5,3185.0,0.15706]
[1768323911796,0.29630058,3186.9,3185.1,0.29771527]
[1768323911995,3.141,3186.7,3185.3,0.14066527]
[1768323912201,3.141,3186.7,3185.4,0.29770527]
[1768323912388,1.322,3186.8,3185.5,0.15703]
[1768323914293,1.46133058,3186.8,3185.5,0.15703]
[1768323915392,0.13933058,3186.7,3184.9,0.14066527]
[1768323915591,0.13933058,3186.7,3184.7,0.00471069]
[1768323915903,0.13933058,3186.7,3184.9,0.15706]
[1768323916694,0.13933058,3186.7,3185.0,0.30068661]
[1768323917005,0.13933058,3186.7,3185.0,0.14362661]
[1768323917205,1.322,3186.8,3185.3,0.15704]
[1768323917706,0.1385818,3186.7,3185.3,0.15704]
[1768323919907,0.1385818,3186.7,3184.7,0.00471069]
[1768323920102,0.1385818,3186.7,3184.8,0.15707]
[1768323920298,1.322,3186.8,3184.7,0.00471069]
[1768323920299,0.1385818,3186.4,3184.7,0.00471069]
[1768323920505,0.1385818,3186.2,3184.7,0.00471069]
[1768323920905,0.1385818,3186.0,3184.7,0.00471069]
[1768323924610,0.1385818,3186.0,3184.5,0.00285898]
[1768323924814,0.1385818,3185.8,3184.5,0.00285898]
[1768323925012,0.1385818,3185.6,3184.5,0.00285898]
[1768323925212,0.1385818,3185.6,3183.7,0.15712]
[1768323925614,0.1385818,3185.4,3183.7,0.15712]
[1768323926104,0.1385818,3185.4,3183.2,0.14362661]
[1768323926313,0.1385818,3185.4,3183.2,0.30424411]
[1768323926813,0.1385818,3185.4,3183.3,0.15714]
[1768323928117,0.1385818,3185.3,3183.3,0.15714]
[1768323928313,0.1385818,3185.0,3183.2,0.0034675]
[1768323928515,0.14237664,3185.0,3183.2,0.0034675]
[1768323933821,0.1385818,3184.8,3183.2,0.0034675]
[1768323934219,0.1385818,3184.5,3183.2,0.0034675]
[1768323934417,0.1385818,3184.3,3183.2,0.0034675]
[1768323934724,0.14440619,3184.2,3183.2,0.0034675]
[1768323936122,1.322,3184.5,3183.2,0.0034675]
[1768323936517,0.14440619,3184.6,3183.2,0.0034675]
[1768323936826,1.46540619,3184.6,3183.2,0.0034675]
[1768323939329,0.14440619,3184.6,3183.2,0.0034675]
[1768323941431,0.00379484,3185.0,3183.3,0.13969309]
[1768323941627,0.00379484,3185.0,3183.7,0.29681309]
[1768323942425,0.00379484,3185.0,3183.7,0.15712]
[1768323944625,1.00379484,3185.0,3183.7,0.15712]
[1768323945525,1.00379484,3185.0,3183.8,0.13969309]
[1768323949334,1.00379484,3185.0,3183.7,0.15712]
[1768323950236,1.00379484,3185.0,3183.8,0.15712]
[1768323950429,1.00379484,3185.0,3184.1,0.29679309]
[1768323950632,4.60840619,3186.0,3184.1,0.13969309]
[1768323951035,0.00471069,3184.9,3184.1,0.13969309]
[1768323951235,4.60840619,3186.0,3184.1,0.13969309]
[1768323951435,4.60840619,3186.0,3184.7,0.00471069]
[1768323951739,4.6121233,3186.0,3184.7,0.00471069]
[1768323951934,0.1481233,3186.0,3184.7,0.00471069]
[1768323952847,0.00371711,3186.0,3184.7,0.14440378]
[1768323954749,0.00371711,3186.0,3184.7,0.30147378]
[1768323955043,0.00371711,3186.0,3184.8,0.29676309]
[1768323955942,0.00371711,3186.0,3184.9,0.29675309]
[1768323957949,0.00371711,3186.0,3184.9,0.15706]
[1768323963036,0.1481233,3186.0,3184.7,0.00471069]
[1768323963345,0.1481233,3186.0,3184.2,0.1571]
[1768323963647,0.14440619,3185.8,3183.9,0.13969309]
[1768323966949,0.14440619,3185.8,3183.9,0.29680309]
[1768323967247,0.14440619,3185.8,3184.0,0.14384085]
[1768323967847,4.461,3185.7,3184.0,0.14384085]
[1768323968048,0.14440619,3185.8,3184.0,0.14384085]
[1768323968248,4.461,3185.7,3184.0,0.14384085]
[1768323968448,0.14440619,3185.8,3184.0,0.14384085]
[1768323968653,4.461,3185.7,3184.0,0.14384085]
[1768323969151,0.00371711,3186.0,3184.3,0.14384085]
[1768323970044,0.14575017,3186.0,3184.3,0.14384085]
[1768323970751,0.14575017,3186.0,3184.1,0.1571]
[1768323974163,0.14575017,3186.0,3183.8,0.14384085]
[1768323974164,0.14203306,3185.7,3183.8,0.14384085]
[1768323976157,0.38939477,3185.6,3183.7,0.15712]
[1768323976458,0.14203306,3185.4,3183.7,0.15712]
[1768323977165,0.14383004,3185.2,3183.4,0.14384085]
[1768323977352,0.14383004,3185.0,3183.2,0.0034675]
[1768323983981,0.00471069,3184.4,3183.2,0.0034675]
[1768323985476,0.14854073,3184.4,3183.2,0.0034675]
[1768323986973,1.6832834,3184.3,3182.5,0.15718]
[1768323987179,0.14383004,3184.2,3182.5,0.15718]
[1768323987479,1.319,3184.1,3182.6,0.13241718]
[1768323987873,1.319,3184.1,3182.6,0.13538954]
[1768323989382,0.00471069,3184.4,3182.7,0.13241718]
[1768323989576,1.319,3184.2,3182.7,0.13241718]
[1768323989879,1.319,3184.2,3182.8,0.13241718]
[1768323990276,0.00471069,3184.4,3182.8,0.13241718]
[1768323990587,1.32271069,3184.4,3182.8,0.13241718]
[1768323991181,0.14383004,3184.3,3182.7,0.15717]
[1768323993282,1.19738836,3184.3,3183.1,1.05355832]
[1768323994879,1.19738836,3184.3,3182.7,0.15717]
[1768323995079,1.19738836,3184.3,3183.1,1.05355832]
[1768323997186,1.318,3184.2,3183.1,1.05355832]
[1768323997388,1.05355832,3183.9,3182.7,1.21072832]
[1768323997596,1.05355832,3183.7,3182.7,1.05355832]
[1768323997790,1.056558,3183.7,3182.7,1.05355832]
[1768323998592,1.05355832,3183.3,3182.6,0.00297236]
[1768323998888,1.056558,3183.7,3182.6,0.00297236]
[1768323999488,1.056558,3183.7,3182.6,1.05653068]
[1768324001389,0.00299968,3183.7,3182.6,1.05653068]
[1768324001685,0.00299968,3183.7,3183.2,1.05355832]
[1768324001885,0.13742654,3184.3,3183.6,1.05355832]
[1768324001886,1.318,3184.1,3183.6,1.05355832]
[1768324002086,1.318,3184.1,3183.2,1.05355832]
[1768324002287,1.318,3184.1,3182.6,0.00297236]
[1768324002489,1.45542654,3184.1,3183.0,1.05355832]
[1768324002992,1.45815069,3184.1,3183.0,1.05355832]
[1768324004090,1.05355832,3183.8,3182.6,0.00297236]
[1768324004296,1.05355832,3183.8,3182.6,1.05653068]
[1768324006496,1.05355832,3183.8,3182.7,1.05355832]
[1768324007197,1.19098486,3184.0,3182.8,1.05355832]
[1768324009197,1.19098486,3184.0,3183.0,1.05355832]
[1768324009492,0.00272415,3184.1,3183.4,1.05355832]
[1768324009998,0.00272415,3184.1,3183.0,0.1464156]
[1768324009999,0.00272415,3184.1,3183.6,1.05355832]
[1768324010198,0.00272415,3184.1,3183.4,1.05355832]
[1768324010396,0.00272415,3184.1,3183.1,0.1464156]
[1768324010597,0.00272415,3184.1,3183.4,1.05355832]
[1768324012198,0.00471069,3184.4,3183.8,1.05355832]
[1768324012892,1.318,3184.7,3184.2,1.05355832]
[1768324013211,1.318,3185.3,3184.4,1.05355832]
[1768324013499,1.318,3185.3,3184.0,1.05355832]
[1768324013500,3.144,3185.9,3184.8,1.05355832]
[1768324013803,2.76341624,3185.8,3184.8,1.05355832]
[1768324014102,2.3751933,3185.8,3184.6,1.05355832]
[1768324015395,1.32163498,3185.8,3184.1,0.1464156]
[1768324016098,1.45906152,3185.8,3184.1,0.1464156]
[1768324016704,0.13742654,3185.7,3184.0,0.15711]
[1768324018097,0.00363498,3185.8,3184.1,0.1464156]
[1768324018397,1.318,3185.7,3184.4,0.1464156]
[1768324018602,0.00363498,3185.8,3184.4,0.1464156]
[1768324018996,1.318,3185.7,3184.4,0.1464156]
[1768324022110,0.00363498,3185.8,3184.4,0.1464156]
[1768324023213,0.14106152,3185.8,3184.2,0.1571]
[1768324023804,0.14106152,3185.8,3184.2,0.3035156]
[1768324026011,0.14106152,3185.8,3184.2,0.1571]
[1768324026409,0.14106152,3185.8,3183.8,0.14626353]
[1768324026713,0.14268371,3185.6,3183.8,0.14626353]
[1768324026915,0.14268371,3185.4,3183.8,0.14626353]
[1768324032217,0.14268371,3185.4,3183.8,0.30338353]
[1768324033113,0.14268371,3185.4,3183.9,0.14155284]
[1768324034822,0.14268371,3185.2,3183.8,0.00471069]
[1768324036719,0.14980882,3185.8,3183.8,0.14249921]
[1768324036916,0.14617384,3185.6,3183.8,0.14249921]
[1768324037423,0.14617384,3185.6,3184.0,1.05270163]
[1768324038016,0.14617384,3185.5,3183.8,0.14249921]
[1768324038617,1.32063498,3185.8,3184.1,0.13778852]
[1768324038817,0.00363498,3185.8,3184.4,0.13778852]
[1768324039119,0.00363498,3185.8,3184.9,1.05270163]
[1768324039318,0.00363498,3185.8,3184.9,0.00383791]
[1768324040920,0.00363498,3185.8,3184.9,0.14162643]
[1768324041223,1.46217384,3186.8,3184.9,0.14162643]
[1768324041419,0.39186494,3186.7,3184.9,0.14162643]
[1768324041622,1.46217384,3186.8,3184.9,0.14162643]
[1768324041823,0.39186479,3186.7,3184.9,0.14162643]
[1768324042121,0.0039839,3186.7,3185.5,0.00471069]
[1768324045724,0.0039839,3186.7,3185.5,0.14249921]
[1768324051829,0.0039839,3186.7,3185.5,0.00471069]
[1768324058533,0.14763918,3186.7,3185.5,0.00471069]
[1768324061533,0.0039839,3186.7,3185.5,0.00471069]
[1768324063935,0.0039839,3186.7,3185.5,0.14603194]
[1768324064235,0.0039839,3186.7,3185.7,1.19334714]
[1768324064733,0.14365528,3187.9,3186.0,1.05202589]
[1768324064925,1.315,3187.8,3186.3,1.19334714]
[1768324065120,1.315,3187.8,3186.3,0.14132125]
[1768324066035,1.3182757,3187.8,3186.3,0.14132125]
[1768324067429,0.39161691,3187.7,3186.3,0.14132125]
[1768324067629,1.3182757,3187.8,3186.3,0.14132125]
[1768324067831,0.39156207,3187.7,3186.3,0.14132125]
[1768324068135,1.3182757,3187.8,3186.3,0.14132125]
[1768324068434,0.39156214,3187.7,3186.3,0.14132125]
[1768324068628,1.3182757,3187.8,3186.3,0.14132125]
[1768324068828,0.39184723,3187.7,3186.3,0.14132125]
[1768324069034,1.46193098,3187.8,3186.3,0.14132125]
[1768324069229,0.39184717,3187.7,3186.3,0.14132125]
[1768324069427,1.46193098,3187.8,3186.3,0.14132125]
[1768324070233,0.14365528,3187.6,3186.2,0.157]
[1768324070540,0.14365528,3187.4,3185.6,0.29835125]
[1768324072338,0.14365528,3187.2,3185.6,0.15703]
[1768324072727,0.14365528,3187.1,3185.6,0.15703]
[1768324073742,0.39212364,3187.0,3185.6,0.15703]
[1768324074038,0.14365528,3187.1,3185.6,0.15703]
[1768324074239,0.39211727,3187.0,3185.6,0.15703]
[1768324074439,0.39211727,3186.9,3185.6,0.15703]
[1768324074738,0.39211727,3186.8,3185.6,0.15703]
[1768324074935,0.14365528,3187.1,3185.6,0.15703]
[1768324075131,0.14365528,3186.9,3185.6,0.15703]
[1768324075337,0.39214427,3186.8,3185.6,0.15703]
[1768324075732,0.14365528,3186.7,3185.5,0.00471069]
[1768324075931,0.39214427,3186.6,3185.5,0.00471069]
[1768324079145,0.53579955,3186.6,3185.5,0.00471069]
[1768324079443,0.14365528,3186.4,3185.5,0.00471069]
[1768324079641,0.14365528,3186.2,3184.9,0.00383791]
[1768324079840,0.53578812,3186.1,3184.9,0.00383791]
[1768324080048,0.14365528,3186.7,3184.9,0.00383791]
[1768324080237,4.847144,3186.6,3184.9,0.30221916]
[1768324080439,0.392144,3186.5,3185.0,0.29838125]
[1768324080638,0.14365528,3187.2,3185.7,0.14132125]
[1768324080846,0.39206278,3187.1,3185.7,0.14132125]
[1768324081143,0.39206278,3187.0,3185.7,0.14132125]
[1768324081449,0.14365528,3186.8,3185.2,0.14132125]
[1768324081745,1.314,3187.3,3185.2,0.14132125]
[1768324081746,0.53571806,3186.7,3185.2,0.14132125]
[1768324081945,0.39206278,3186.6,3185.2,0.14132125]
[1768324082547,0.14365528,3186.5,3185.0,0.15706]
[1768324082843,0.39209713,3186.4,3185.0,0.15706]
[1768324083043,0.14365528,3186.5,3185.0,0.15706]
[1768324083239,0.39209044,3186.4,3185.0,0.15706]
[1768324083439,0.14365528,3186.5,3185.0,0.15706]
[1768324083636,0.39204736,3186.4,3185.0,0.15706]
[1768324083946,0.14365528,3186.2,3184.9,0.00383791]
[1768324084143,0.39206072,3186.1,3184.9,0.00383791]
[1768324084346,0.14365528,3186.2,3184.9,0.00383791]
[1768324085839,0.13603478,3186.1,3184.9,0.00383791]
[1768324087444,1.18854288,3186.1,3184.9,0.00383791]
[1768324088343,1.0525081,3185.5,3184.0,0.13521083]
[1768324088757,1.0525081,3185.2,3183.8,0.29233083]
[1768324089043,0.13603478,3185.4,3183.8,0.29233083]
[1768324089244,0.14001413,3185.4,3183.8,0.16117362]
[1768324089838,0.14001413,3185.4,3183.9,0.15711]
[1768324090644,1.18854288,3185.3,3183.9,0.15711]
[1768324090846,0.13603478,3185.2,3183.9,0.15711]
[1768324092950,0.00397935,3185.4,3183.9,0.15711]
[1768324093144,0.00397935,3185.4,3183.9,0.13521083]
[1768324093344,0.00397935,3185.4,3184.3,0.13521083]
[1768324093650,0.00397935,3185.4,3184.2,0.1571]
[1768324094046,0.00397935,3185.4,3184.2,0.29231083]
[1768324095054,0.00397935,3185.4,3184.3,0.13521083]
[1768324096754,0.13575142,3186.2,3184.6,0.29985952]
[1768324097047,0.13575142,3186.2,3184.7,0.29984952]
[1768324097252,1.313,3186.3,3184.8,0.14277952]
[1768324097841,1.3170471,3186.3,3184.8,0.14277952]
[1768324098056,0.13575142,3185.8,3184.2,0.14277952]
[1768324098247,0.13575142,3185.8,3184.0,0.15711]
[1768324098946,0.13575142,3185.4,3184.0,0.15711]
[1768324100048,1.44875142,3185.4,3184.0,0.15711]
[1768324100748,0.13575142,3185.4,3184.0,0.15711]
[1768324100947,1.313,3185.5,3184.0,0.15711]
[1768324102850,1.313,3185.5,3184.1,0.1571]
[1768324103058,0.13575142,3185.8,3184.3,0.15709]
[1768324106664,1.313,3185.7,3184.3,0.15709]
[1768324108067,0.13575142,3185.8,3184.3,0.29986952]
[1768324108268,1.44775142,3185.8,3184.3,0.29986952]
[1768324111468,0.13575142,3185.7,3184.3,0.15709]
[1768324115470,0.13720206,3186.2,3184.4,0.14283276]
[1768324115773,0.39255233,3186.1,3184.6,0.15708]
[1768324116073,0.39255233,3186.0,3184.6,0.15708]
[1768324116273,1.312,3186.1,3184.6,0.15708]
[1768324116572,0.39255466,3186.0,3184.6,0.15708]
[1768324116771,1.312,3186.1,3184.6,0.15708]
[1768324116962,0.39255472,3186.0,3184.6,0.15708]
[1768324117159,1.312,3186.1,3184.6,0.15708]
[1768324117357,0.39256929,3186.0,3184.6,0.15708]
[1768324117569,1.312,3186.1,3184.6,0.15708]
[1768324117763,0.39256146,3186.0,3184.6,0.15708]
[1768324117963,1.312,3186.1,3184.6,0.15708]
[1768324118173,0.39256146,3186.0,3184.6,0.15708]
[1768324118368,1.312,3186.1,3184.6,0.15708]
[1768324118567,0.39254718,3186.0,3184.6,0.15708]
[1768324118772,1.312,3185.9,3184.6,0.15708]
[1768324119273,2.36441505,3185.9,3184.7,1.05241505]
[1768324120174,1.05241505,3185.7,3184.6,1.20949505]
[1768324122774,0.0040471,3186.3,3185.2,1.05241505]
[1768324122969,1.05241505,3186.1,3185.0,0.15706]
[1768324123169,1.05241505,3185.9,3185.0,0.15706]
[1768324123568,0.13720206,3186.2,3185.1,1.05241505]
[1768324124273,0.39241365,3186.1,3185.1,1.05241505]
[1768324124472,0.13720206,3186.2,3185.3,1.05241505]
[1768324124678,0.39241363,3186.1,3185.5,1.05241505]
[1768324124873,1.312,3186.2,3185.5,1.05241505]
[1768324125087,0.39241288,3186.1,3185.5,1.05241505]
[1768324125286,1.312,3186.2,3185.5,1.05241505]
[1768324125492,0.39234428,3186.1,3185.5,1.05241505]
[1768324125788,1.312,3186.2,3185.5,1.05241505]
[1768324125990,0.39234435,3186.1,3185.5,1.05241505]
[1768324126289,1.312,3186.2,3185.5,1.05241505]
[1768324126489,0.39228716,3186.1,3185.5,1.05241505]
[1768324126690,1.312,3186.2,3185.5,1.05241505]
[1768324126894,0.39228716,3186.1,3185.5,1.05241505]
[1768324127088,1.312,3186.2,3185.5,1.05241505]
[1768324127385,0.39228716,3186.1,3185.5,1.05241505]
[1768324127588,1.312,3186.2,3185.5,1.05241505]
[1768324127788,0.39225007,3186.1,3185.5,1.05241505]
[1768324127981,1.312,3186.2,3185.5,1.05241505]
[1768324128183,0.39225021,3186.1,3185.5,1.05241505]
[1768324128378,1.312,3186.2,3185.1,1.05241505]
[1768324128585,0.39220093,3186.1,3185.1,1.05241505]
[1768324128785,1.312,3186.2,3185.3,1.05241505]
[1768324128989,0.39220079,3186.1,3185.3,1.05241505]
[1768324129190,1.312,3186.2,3185.3,1.05241505]
[1768324129386,1.312,3186.2,3185.5,1.05241505]
[1768324129590,3.142,3187.1,3186.1,1.05241505]
[1768324129781,0.39217493,3187.0,3186.3,1.05241505]
[1768324129986,0.39217493,3186.9,3186.1,1.05241505]
[1768324130291,2.36541505,3187.2,3186.1,1.05241505]
[1768324130489,0.39192874,3187.1,3186.1,1.05241505]
[1768324130688,1.18961711,3186.6,3185.5,1.05241505]
[1768324131085,0.13720206,3186.6,3185.7,1.05241505]